Workbook

Sheet 作成に係る計算表
A1: STEP①：下記の計算表の作成する。 | J1: STEP②：共同取組配分方法の選択→ | T1: 面積割 | AB1: STEP③：参加者別に個人配分額、日当等受領額、共同取組割当の適用の有無を入力する。 | AM1: STEP④：端数がある場合は端数調整額を入力 | BB1: STEP⑤減価償却資産取得額を入力→ | BF1: STEP⑥原価償却費を入力→ | BK1: STEP⑦：協定参加者別シートへ移動
A2: 収支状況報告書作成に係る計算表 | AC2: 合計 | AD2: =SUM(AD4:AD88) -> 0 | AE2: =COUNTIF(AE4:AE88,"有") -> 0 | AF2: =SUM(AF4:AF88) -> 0 | AG2: =SUM(AG4:AG88) -> 0 | AH2: =SUM(AH4:AH88) -> 0 | AM2: 合計 | AN2: =SUM(AN4:AN88) -> 0 | AO2: =I8-AN2 -> 0 | AP2: =SUM(AP4:AP88) -> 0 | AQ2: =I8-AP2 -> 0 | AS2: =SUM(AS4:AS88) -> 0 | AT2: =L24-AS2 -> 0 | AU2: =SUM(AU4:AU88) -> 0 | AV2: =L24-AU2 -> 0 | AW2: =SUM(AW4:AW88) -> 0 | AX2: =L25-AW2 -> 0 | AY2: =SUM(AY4:AY88) -> 0 | AZ2: =L25-AY2 -> 0 | BB2: =SUM(BB4:BB88) -> 0 | BC2: =BD1-BB2 -> 0 | BD2: =SUM(BD4:BD88) -> 0 | BE2: =BD1-BD2 -> 0 | BF2: =SUM(BF4:BF88) -> 0 | BG2: =BH1-BF2 -> 0 | BH2: =SUM(BH4:BH88) -> 0 | BI2: =BH1-BH2 -> 0
S3: ○○ | W3: 集落協定 | AB3: No | AC3: 参加者氏名 | AD3: 個人配分額 | AE3: 共同取組割当の適用 | AF3: 共同取組割当額 | AG3: 日当等受領額 | AH3: 共同取組支出額 | AI3: 必要経費に該当しない支出額 | AJ3: 原価償却資産取得費 | AK3: 原価償却費 | AM3: 個人配分額順位 | AN3: 共同(均等割） 端数切捨 | AO3: 端数調整↓ | AP3: 共同(面積割） 端数切捨 | AQ3: 端数調整↓ | AR3: 個人配分割合 | AS3: 共同支出額 (均等割）端数切捨 | AT3: 端数調整↓ | AU3: 共同支出額 (面積割）端数切捨 | AV3: 端数調整↓ | AW3: 経費以外 支出額（均等割） | AX3: 端数調整↓ | AY3: 経費以外 支出額（面積割） | AZ3: 端数調整↓ | BB3: 減価償却資産取得額（均等割） | BC3: 端数調整↓ | BD3: 減価償却資産取得額（面積割） | BE3: 端数調整↓ | BF3: 減価償却費（均等割） | BG3: 端数調整↓ | BH3: 減価償却費（面積割） | BI3: 端数調整↓
A4: １ 交付金に係る配分額及び共同取組活動の支出額 | AB4: 1 | AF4: =IF(AN4="","",IF($T$1="均等割",AN4+AO4,AP4+AQ4)) ->  | AH4: =IF(AN4="","",IF($T$1="均等割",AS4+AT4,AU4+AV4)) ->  | AI4: =IF(AN4="","",IF($T$1="均等割",AW4+AX4,AY4+AZ4)) ->  | AJ4: =IF(AN4="","",IF($T$1="均等割",BB4+BC4,BD4+BE4)) ->  | AK4: =IF(AN4="","",IF($T$1="均等割",BF4+BG4,BH4+BI4)) ->  | AM4: =_xlfn.RANK.AVG(AD4,$AD$4:$AD$88) ->  | AN4: =IF(AE4="有",ROUNDDOWN($I$8/$AE$2,0),IF(AE4="無",0,"")) ->  | AP4: =IF(AE4="有",ROUNDDOWN($I$8*AR4,0),IF(AE4="無",0,"")) ->  | AR4: =AD4/$I$7 ->  | AS4: =IF(AE4="有",ROUNDDOWN($L$24/$AE$2,0),IF(AE4="無",0,"")) ->  | AU4: =IF(AE4="有",ROUNDDOWN($L$24*AR4,0),IF(AE4="無",0,"")) ->  | AW4: =IF(AE4="有",ROUNDDOWN($L$25/$AE$2,0),IF(AE4="無",0,"")) ->  | AY4: =IF(AE4="有",ROUNDDOWN(AR4*$L$25,0),IF(AE4="無",0,"")) ->  | BB4: =IF(AE4="有",ROUNDDOWN($BD$1/$AE$2,0),IF(AE4="無",0,"")) ->  | BD4: =IF(AE4="有",ROUNDDOWN(AR4*$BD$1,0),IF(AE4="無",0,"")) ->  | BF4: =IF(AE4="有",ROUNDDOWN($BH$1/$AE$2,0),IF(AE4="無",0,"")) ->  | BH4: =IF(AE4="有",ROUNDDOWN(AR4*$BH$1,0),IF(AE4="無",0,"")) -> 
A5: （１）配分総額 | AB5: 2 | AF5: =IF(AN5="","",IF($T$1="均等割",AN5+AO5,AP5+AQ5)) ->  | AH5: =IF(AN5="","",IF($T$1="均等割",AS5+AT5,AU5+AV5)) ->  | AI5: =IF(AN5="","",IF($T$1="均等割",AW5+AX5,AY5+AZ5)) ->  | AJ5: =IF(AN5="","",IF($T$1="均等割",BB5+BC5,BD5+BE5)) ->  | AK5: =IF(AN5="","",IF($T$1="均等割",BF5+BG5,BH5+BI5)) ->  | AM5: =_xlfn.RANK.AVG(AD5,$AD$4:$AD$88) ->  | AR5: =AD5/$I$7 ->  | AS5: =IF(AE5="有",ROUNDDOWN($L$24/$AE$2,0),IF(AE5="無",0,"")) ->  | AU5: =IF(AE5="有",ROUNDDOWN($L$24*AR5,0),IF(AE5="無",0,"")) ->  | AW5: =IF(AE5="有",ROUNDDOWN($L$25/$AE$2,0),IF(AE5="無",0,"")) ->  | AY5: =IF(AE5="有",ROUNDDOWN(AR5*$L$25,0),IF(AE5="無",0,"")) ->  | BB5: =IF(AE5="有",ROUNDDOWN($BD$1/$AE$2,0),IF(AE5="無",0,"")) ->  | BD5: =IF(AE5="有",ROUNDDOWN(AR5*$BD$1,0),IF(AE5="無",0,"")) ->  | BF5: =IF(AE5="有",ROUNDDOWN($BH$1/$AE$2,0),IF(AE5="無",0,"")) ->  | BH5: =IF(AE5="有",ROUNDDOWN(AR5*$BH$1,0),IF(AE5="無",0,"")) -> 
I6: 総 額（円） | N6: 配分等の基礎 | AB6: 3
B7: ①個人配分分 | AB7: 4
B8: ②共同取組活動分 | AB8: 5
B9: ③合計 | I9: =SUM(I7:M8) -> 0 | AB9: 6
A10: （２）共同取組活動支出額 | AB10: 7
B11: 支出項目 | L11: 支出額（円） | Q11: 備考 | AB11: 8
B12: ⑤共同取組活動費 | C12: ④役員報酬等 | D12: 役員報酬 | AB12: 9
D13: 日当 | AB13: 10
D14: その他手当等 | AB14: 11
D15: ④合計額 | L15: =SUM(L12:P14) -> 0 | AB15: 12
AB16: 13
AB17: 14
AB18: 15
AB19: 16
AB20: 17
AB21: 18
AB22: 19
AB23: 20
B24: ⑤共同取組活動費合計額（④を含む） | L24: =L15+SUM(L16:P23) -> 0 | Q24: 内訳： | AB24: 21
B25: ⑥ | C25: ⑤のうち、必要経費に該当しない経費の合計額 | AB25: 22
B26: 残（積立・繰越）額 | Q26: 過年残（積立）額累計 | AB26: 23
AB27: 24
AB28: 25
AB29: 26
AB30: 27
AB31: 28
AB32: 29
AB33: 30
AB34: 31
AB35: 32
AB36: 33 | AN36: =IF(AE36="有",ROUNDDOWN($I$8/$AE$2,0),IF(AE36="無",0,"")) ->  | AP36: =IF(AE36="有",ROUNDDOWN($I$8*AR36,0),IF(AE36="無",0,"")) -> 
AB37: 34
AB38: 35
AB39: 36
AB40: 37
AB41: 38
AB42: 39
AB43: 40
AB44: 41
AB45: 42
AB46: 43
AB47: 44
AB48: 45
AB49: 46
AB50: 47
AB51: 48
AB52: 49
AB53: 50
AB54: 51
AB55: 52
AB56: 53
AB57: 54
AB58: 55
AB59: 56
AB60: 57
AB61: 58
AB62: 59
AB63: 60
AB64: 61
AB65: 62
AB66: 63
AB67: 64
AB68: 65 | AN68: =IF(AE68="有",ROUNDDOWN($I$8/$AE$2,0),IF(AE68="無",0,"")) ->  | AP68: =IF(AE68="有",ROUNDDOWN($I$8*AR68,0),IF(AE68="無",0,"")) -> 
AB69: 66 | AF69: =IF(AN69="","",IF($T$1="均等割",AN69+AO69,AP69+AQ69)) ->  | AH69: =IF(AN69="","",IF($T$1="均等割",AS69+AT69,AU69+AV69)) ->  | AI69: =IF(AN69="","",IF($T$1="均等割",AW69+AX69,AY69+AZ69)) ->  | AJ69: =IF(AN69="","",IF($T$1="均等割",BB69+BC69,BD69+BE69)) ->  | AK69: =IF(AN69="","",IF($T$1="均等割",BF69+BG69,BH69+BI69)) ->  | AM69: =_xlfn.RANK.AVG(AD69,$AD$4:$AD$88) ->  | AR69: =AD69/$I$7 ->  | AS69: =IF(AE69="有",ROUNDDOWN($L$24/$AE$2,0),IF(AE69="無",0,"")) ->  | AU69: =IF(AE69="有",ROUNDDOWN($L$24*AR69,0),IF(AE69="無",0,"")) ->  | AW69: =IF(AE69="有",ROUNDDOWN($L$25/$AE$2,0),IF(AE69="無",0,"")) ->  | AY69: =IF(AE69="有",ROUNDDOWN(AR69*$L$25,0),IF(AE69="無",0,"")) ->  | BB69: =IF(AE69="有",ROUNDDOWN($BD$1/$AE$2,0),IF(AE69="無",0,"")) ->  | BD69: =IF(AE69="有",ROUNDDOWN(AR69*$BD$1,0),IF(AE69="無",0,"")) ->  | BF69: =IF(AE69="有",ROUNDDOWN($BH$1/$AE$2,0),IF(AE69="無",0,"")) ->  | BH69: =IF(AE69="有",ROUNDDOWN(AR69*$BH$1,0),IF(AE69="無",0,"")) -> 
AB70: 67
AB71: 68
AB72: 69
AB73: 70
AB74: 71
AB75: 72
AB76: 73
AB77: 74
AB78: 75
AB79: 76
AB80: 77
AB81: 78
AB82: 79
AB83: 80
AB84: 81
AB85: 82
AB86: 83
AB87: 84
AB88: 85

Sheet 協定参加者別
B1: STEP⑧：代表者名及び該当行政区を入力する。 | E1: STEP⑨：減価償却資産の取得金額及び減価償却費がある場合は入力する。 | J1: STEP⑩：印刷する。
M2: 平成 年 月 日
A4: ○○ 年分【○○ 年1月1日～○○ 年12月31日】
A5: 確定申告に係る中山間地域等直接支払交付金収支状況報告書
J7: 集落協定名 | K7: =IF(作成に係る計算表!S3="","",作成に係る計算表!S3) -> ○○ | M7: 集落協定
J9: 集落協定代表者 | N9: ㊞
J11: 該当行政区名 | K11: 町
A13: No. | B13: 氏名 | C13: 収入 | G13: 支出 | M13: 所得金額 | N13: 備考
C14: 交付金 | F14: 役員報酬等 | G14: ⑤ 共同取組活動分 | K14: ⑨ | L14: ⑩
C15: ① | D15: ② | E15: ③ | F15: ④ | G15: 支出額 | H15: ⑥ ⑤のうち | I15: ⑦ ⑤のうち | J15: ⑧ | K15: 減価償却費 | L15: 必要経費 （⑧+⑨）
C16: 個人配分分 | D16: 共同取組活動分 | E16: 合計 （①＋②） | F16: 個人が受領した額 | H16: 必要経費に該当しない支出額 | I16: 減価償却資産 の取得金額 | J16: 差引計 （⑤-⑥-⑦） | M16: （③-⑩＋④）
C17: 円 | D17: 円 | E17: 円 | F17: 円 | G17: 円 | H17: 円 | I17: 円 | J17: 円 | K17: 円 | L17: 円 | M17: 円
B18: 集落合計 | C18: =SUM(C19:C103) -> 0 | D18: =SUM(D19:D103) -> 0 | E18: =C18+D18 -> 0 | F18: =SUM(F19:F103) -> 0 | G18: =SUM(G19:G103) -> 0 | H18: =SUM(H19:H103) -> 0 | I18: =SUM(I19:I103) -> 0 | J18: =G18-H18-I18 -> 0 | K18: =SUM(K19:K103) -> 0 | L18: =J18+K18 -> 0 | M18: =E18-L18+F18 -> 0
A19: 1 | B19: =IF(作成に係る計算表!AC4="","",作成に係る計算表!AC4) ->  | C19: =IF(B19="","",作成に係る計算表!AD4) ->  | D19: =IF(B19="","",作成に係る計算表!AF4) ->  | E19: =IF(C19="","",C19+D19) ->  | F19: =IF(B19="","",作成に係る計算表!AG4) ->  | G19: =作成に係る計算表!AH4 ->  | H19: =作成に係る計算表!AI4 ->  | I19: =作成に係る計算表!AJ4 ->  | J19: =IF(G19="","",G19-H19-I19) ->  | K19: =作成に係る計算表!AK4 ->  | L19: =IF(G19="","",J19+K19) ->  | M19: =IF(G19="","",E19-L19+F19) -> 
A20: 2 | B20: =IF(作成に係る計算表!AC5="","",作成に係る計算表!AC5) ->  | C20: =IF(B20="","",作成に係る計算表!AD5) ->  | D20: =IF(B20="","",作成に係る計算表!AF5) ->  | E20: =IF(C20="","",C20+D20) ->  | F20: =IF(B20="","",作成に係る計算表!AG5) ->  | G20: =作成に係る計算表!AH5 ->  | H20: =作成に係る計算表!AI5 ->  | I20: =作成に係る計算表!AJ5 ->  | J20: =IF(G20="","",G20-H20-I20) ->  | K20: =作成に係る計算表!AK5 ->  | L20: =IF(G20="","",J20+K20) ->  | M20: =IF(G20="","",E20-L20+F20) -> 
A21: 3 | B21: =IF(作成に係る計算表!AC6="","",作成に係る計算表!AC6) ->  | C21: =IF(B21="","",作成に係る計算表!AD6) ->  | D21: =IF(B21="","",作成に係る計算表!AF6) ->  | F21: =IF(B21="","",作成に係る計算表!AG6) ->  | G21: =作成に係る計算表!AH6 ->  | H21: =作成に係る計算表!AI6 ->  | I21: =作成に係る計算表!AJ6 ->  | K21: =作成に係る計算表!AK6 -> 
A22: 4 | B22: =IF(作成に係る計算表!AC7="","",作成に係る計算表!AC7) ->  | C22: =IF(B22="","",作成に係る計算表!AD7) ->  | D22: =IF(B22="","",作成に係る計算表!AF7) ->  | F22: =IF(B22="","",作成に係る計算表!AG7) ->  | G22: =作成に係る計算表!AH7 ->  | H22: =作成に係る計算表!AI7 ->  | I22: =作成に係る計算表!AJ7 ->  | K22: =作成に係る計算表!AK7 -> 
A23: 5 | B23: =IF(作成に係る計算表!AC8="","",作成に係る計算表!AC8) ->  | C23: =IF(B23="","",作成に係る計算表!AD8) ->  | D23: =IF(B23="","",作成に係る計算表!AF8) ->  | F23: =IF(B23="","",作成に係る計算表!AG8) ->  | G23: =作成に係る計算表!AH8 ->  | H23: =作成に係る計算表!AI8 ->  | I23: =作成に係る計算表!AJ8 ->  | K23: =作成に係る計算表!AK8 -> 
A24: 6 | B24: =IF(作成に係る計算表!AC9="","",作成に係る計算表!AC9) ->  | C24: =IF(B24="","",作成に係る計算表!AD9) ->  | D24: =IF(B24="","",作成に係る計算表!AF9) ->  | F24: =IF(B24="","",作成に係る計算表!AG9) ->  | G24: =作成に係る計算表!AH9 ->  | H24: =作成に係る計算表!AI9 ->  | I24: =作成に係る計算表!AJ9 ->  | K24: =作成に係る計算表!AK9 -> 
A25: 7 | B25: =IF(作成に係る計算表!AC10="","",作成に係る計算表!AC10) ->  | C25: =IF(B25="","",作成に係る計算表!AD10) ->  | D25: =IF(B25="","",作成に係る計算表!AF10) ->  | F25: =IF(B25="","",作成に係る計算表!AG10) ->  | G25: =作成に係る計算表!AH10 ->  | H25: =作成に係る計算表!AI10 ->  | I25: =作成に係る計算表!AJ10 ->  | K25: =作成に係る計算表!AK10 -> 
A26: 8 | B26: =IF(作成に係る計算表!AC11="","",作成に係る計算表!AC11) ->  | C26: =IF(B26="","",作成に係る計算表!AD11) ->  | D26: =IF(B26="","",作成に係る計算表!AF11) ->  | F26: =IF(B26="","",作成に係る計算表!AG11) ->  | G26: =作成に係る計算表!AH11 ->  | H26: =作成に係る計算表!AI11 ->  | I26: =作成に係る計算表!AJ11 ->  | K26: =作成に係る計算表!AK11 -> 
A27: 9 | B27: =IF(作成に係る計算表!AC12="","",作成に係る計算表!AC12) ->  | C27: =IF(B27="","",作成に係る計算表!AD12) ->  | D27: =IF(B27="","",作成に係る計算表!AF12) ->  | F27: =IF(B27="","",作成に係る計算表!AG12) ->  | G27: =作成に係る計算表!AH12 ->  | H27: =作成に係る計算表!AI12 ->  | I27: =作成に係る計算表!AJ12 ->  | K27: =作成に係る計算表!AK12 -> 
A28: 10 | B28: =IF(作成に係る計算表!AC13="","",作成に係る計算表!AC13) ->  | C28: =IF(B28="","",作成に係る計算表!AD13) ->  | D28: =IF(B28="","",作成に係る計算表!AF13) ->  | F28: =IF(B28="","",作成に係る計算表!AG13) ->  | G28: =作成に係る計算表!AH13 ->  | H28: =作成に係る計算表!AI13 ->  | I28: =作成に係る計算表!AJ13 ->  | K28: =作成に係る計算表!AK13 -> 
A29: 11 | B29: =IF(作成に係る計算表!AC14="","",作成に係る計算表!AC14) ->  | C29: =IF(B29="","",作成に係る計算表!AD14) ->  | D29: =IF(B29="","",作成に係る計算表!AF14) ->  | F29: =IF(B29="","",作成に係る計算表!AG14) ->  | G29: =作成に係る計算表!AH14 ->  | H29: =作成に係る計算表!AI14 ->  | I29: =作成に係る計算表!AJ14 ->  | K29: =作成に係る計算表!AK14 -> 
A30: 12 | B30: =IF(作成に係る計算表!AC15="","",作成に係る計算表!AC15) ->  | C30: =IF(B30="","",作成に係る計算表!AD15) ->  | D30: =IF(B30="","",作成に係る計算表!AF15) ->  | F30: =IF(B30="","",作成に係る計算表!AG15) ->  | G30: =作成に係る計算表!AH15 ->  | H30: =作成に係る計算表!AI15 ->  | I30: =作成に係る計算表!AJ15 ->  | K30: =作成に係る計算表!AK15 -> 
A31: 13 | B31: =IF(作成に係る計算表!AC16="","",作成に係る計算表!AC16) ->  | C31: =IF(B31="","",作成に係る計算表!AD16) ->  | D31: =IF(B31="","",作成に係る計算表!AF16) ->  | F31: =IF(B31="","",作成に係る計算表!AG16) ->  | G31: =作成に係る計算表!AH16 ->  | H31: =作成に係る計算表!AI16 ->  | I31: =作成に係る計算表!AJ16 ->  | K31: =作成に係る計算表!AK16 -> 
A32: 14 | B32: =IF(作成に係る計算表!AC17="","",作成に係る計算表!AC17) ->  | C32: =IF(B32="","",作成に係る計算表!AD17) ->  | D32: =IF(B32="","",作成に係る計算表!AF17) ->  | F32: =IF(B32="","",作成に係る計算表!AG17) ->  | G32: =作成に係る計算表!AH17 ->  | H32: =作成に係る計算表!AI17 ->  | I32: =作成に係る計算表!AJ17 ->  | K32: =作成に係る計算表!AK17 -> 
A33: 15 | B33: =IF(作成に係る計算表!AC18="","",作成に係る計算表!AC18) ->  | C33: =IF(B33="","",作成に係る計算表!AD18) ->  | D33: =IF(B33="","",作成に係る計算表!AF18) ->  | F33: =IF(B33="","",作成に係る計算表!AG18) ->  | G33: =作成に係る計算表!AH18 ->  | H33: =作成に係る計算表!AI18 ->  | I33: =作成に係る計算表!AJ18 ->  | K33: =作成に係る計算表!AK18 -> 
A34: 16 | B34: =IF(作成に係る計算表!AC19="","",作成に係る計算表!AC19) ->  | C34: =IF(B34="","",作成に係る計算表!AD19) ->  | D34: =IF(B34="","",作成に係る計算表!AF19) ->  | F34: =IF(B34="","",作成に係る計算表!AG19) ->  | G34: =作成に係る計算表!AH19 ->  | H34: =作成に係る計算表!AI19 ->  | I34: =作成に係る計算表!AJ19 ->  | K34: =作成に係る計算表!AK19 -> 
A35: 17 | B35: =IF(作成に係る計算表!AC20="","",作成に係る計算表!AC20) ->  | C35: =IF(B35="","",作成に係る計算表!AD20) ->  | D35: =IF(B35="","",作成に係る計算表!AF20) ->  | F35: =IF(B35="","",作成に係る計算表!AG20) ->  | G35: =作成に係る計算表!AH20 ->  | H35: =作成に係る計算表!AI20 ->  | I35: =作成に係る計算表!AJ20 ->  | K35: =作成に係る計算表!AK20 -> 
A36: 18 | B36: =IF(作成に係る計算表!AC21="","",作成に係る計算表!AC21) ->  | C36: =IF(B36="","",作成に係る計算表!AD21) ->  | D36: =IF(B36="","",作成に係る計算表!AF21) ->  | F36: =IF(B36="","",作成に係る計算表!AG21) ->  | G36: =作成に係る計算表!AH21 ->  | H36: =作成に係る計算表!AI21 ->  | I36: =作成に係る計算表!AJ21 ->  | K36: =作成に係る計算表!AK21 -> 
A37: 19 | B37: =IF(作成に係る計算表!AC22="","",作成に係る計算表!AC22) ->  | C37: =IF(B37="","",作成に係る計算表!AD22) ->  | D37: =IF(B37="","",作成に係る計算表!AF22) ->  | F37: =IF(B37="","",作成に係る計算表!AG22) ->  | G37: =作成に係る計算表!AH22 ->  | H37: =作成に係る計算表!AI22 ->  | I37: =作成に係る計算表!AJ22 ->  | K37: =作成に係る計算表!AK22 -> 
A38: 20 | B38: =IF(作成に係る計算表!AC23="","",作成に係る計算表!AC23) ->  | C38: =IF(B38="","",作成に係る計算表!AD23) ->  | D38: =IF(B38="","",作成に係る計算表!AF23) ->  | F38: =IF(B38="","",作成に係る計算表!AG23) ->  | G38: =作成に係る計算表!AH23 ->  | H38: =作成に係る計算表!AI23 ->  | I38: =作成に係る計算表!AJ23 ->  | K38: =作成に係る計算表!AK23 -> 
A39: 21 | B39: =IF(作成に係る計算表!AC24="","",作成に係る計算表!AC24) ->  | C39: =IF(B39="","",作成に係る計算表!AD24) ->  | D39: =IF(B39="","",作成に係る計算表!AF24) ->  | F39: =IF(B39="","",作成に係る計算表!AG24) ->  | G39: =作成に係る計算表!AH24 ->  | H39: =作成に係る計算表!AI24 ->  | I39: =作成に係る計算表!AJ24 ->  | K39: =作成に係る計算表!AK24 -> 
A40: 22 | B40: =IF(作成に係る計算表!AC25="","",作成に係る計算表!AC25) ->  | C40: =IF(B40="","",作成に係る計算表!AD25) ->  | D40: =IF(B40="","",作成に係る計算表!AF25) ->  | F40: =IF(B40="","",作成に係る計算表!AG25) ->  | G40: =作成に係る計算表!AH25 ->  | H40: =作成に係る計算表!AI25 ->  | I40: =作成に係る計算表!AJ25 ->  | K40: =作成に係る計算表!AK25 -> 
A41: 23 | B41: =IF(作成に係る計算表!AC26="","",作成に係る計算表!AC26) ->  | C41: =IF(B41="","",作成に係る計算表!AD26) ->  | D41: =IF(B41="","",作成に係る計算表!AF26) ->  | F41: =IF(B41="","",作成に係る計算表!AG26) ->  | G41: =作成に係る計算表!AH26 ->  | H41: =作成に係る計算表!AI26 ->  | I41: =作成に係る計算表!AJ26 ->  | K41: =作成に係る計算表!AK26 -> 
A42: 24 | B42: =IF(作成に係る計算表!AC27="","",作成に係る計算表!AC27) ->  | C42: =IF(B42="","",作成に係る計算表!AD27) ->  | D42: =IF(B42="","",作成に係る計算表!AF27) ->  | F42: =IF(B42="","",作成に係る計算表!AG27) ->  | G42: =作成に係る計算表!AH27 ->  | H42: =作成に係る計算表!AI27 ->  | I42: =作成に係る計算表!AJ27 ->  | K42: =作成に係る計算表!AK27 -> 
A43: 25 | B43: =IF(作成に係る計算表!AC28="","",作成に係る計算表!AC28) ->  | C43: =IF(B43="","",作成に係る計算表!AD28) ->  | D43: =IF(B43="","",作成に係る計算表!AF28) ->  | F43: =IF(B43="","",作成に係る計算表!AG28) ->  | G43: =作成に係る計算表!AH28 ->  | H43: =作成に係る計算表!AI28 ->  | I43: =作成に係る計算表!AJ28 ->  | K43: =作成に係る計算表!AK28 -> 
A44: 26 | B44: =IF(作成に係る計算表!AC29="","",作成に係る計算表!AC29) ->  | C44: =IF(B44="","",作成に係る計算表!AD29) ->  | D44: =IF(B44="","",作成に係る計算表!AF29) ->  | F44: =IF(B44="","",作成に係る計算表!AG29) ->  | G44: =作成に係る計算表!AH29 ->  | H44: =作成に係る計算表!AI29 ->  | I44: =作成に係る計算表!AJ29 ->  | K44: =作成に係る計算表!AK29 -> 
A45: 27 | B45: =IF(作成に係る計算表!AC30="","",作成に係る計算表!AC30) ->  | C45: =IF(B45="","",作成に係る計算表!AD30) ->  | D45: =IF(B45="","",作成に係る計算表!AF30) ->  | F45: =IF(B45="","",作成に係る計算表!AG30) ->  | G45: =作成に係る計算表!AH30 ->  | H45: =作成に係る計算表!AI30 ->  | I45: =作成に係る計算表!AJ30 ->  | K45: =作成に係る計算表!AK30 -> 
A46: 28 | B46: =IF(作成に係る計算表!AC31="","",作成に係る計算表!AC31) ->  | C46: =IF(B46="","",作成に係る計算表!AD31) ->  | D46: =IF(B46="","",作成に係る計算表!AF31) ->  | F46: =IF(B46="","",作成に係る計算表!AG31) ->  | G46: =作成に係る計算表!AH31 ->  | H46: =作成に係る計算表!AI31 ->  | I46: =作成に係る計算表!AJ31 ->  | K46: =作成に係る計算表!AK31 -> 
A47: 29 | B47: =IF(作成に係る計算表!AC32="","",作成に係る計算表!AC32) ->  | C47: =IF(B47="","",作成に係る計算表!AD32) ->  | D47: =IF(B47="","",作成に係る計算表!AF32) ->  | F47: =IF(B47="","",作成に係る計算表!AG32) ->  | G47: =作成に係る計算表!AH32 ->  | H47: =作成に係る計算表!AI32 ->  | I47: =作成に係る計算表!AJ32 ->  | K47: =作成に係る計算表!AK32 -> 
A48: 30 | B48: =IF(作成に係る計算表!AC33="","",作成に係る計算表!AC33) ->  | C48: =IF(B48="","",作成に係る計算表!AD33) ->  | D48: =IF(B48="","",作成に係る計算表!AF33) ->  | F48: =IF(B48="","",作成に係る計算表!AG33) ->  | G48: =作成に係る計算表!AH33 ->  | H48: =作成に係る計算表!AI33 ->  | I48: =作成に係る計算表!AJ33 ->  | K48: =作成に係る計算表!AK33 -> 
A49: 31 | B49: =IF(作成に係る計算表!AC34="","",作成に係る計算表!AC34) ->  | C49: =IF(B49="","",作成に係る計算表!AD34) ->  | D49: =IF(B49="","",作成に係る計算表!AF34) ->  | F49: =IF(B49="","",作成に係る計算表!AG34) ->  | G49: =作成に係る計算表!AH34 ->  | H49: =作成に係る計算表!AI34 ->  | I49: =作成に係る計算表!AJ34 ->  | K49: =作成に係る計算表!AK34 -> 
A50: 32 | B50: =IF(作成に係る計算表!AC35="","",作成に係る計算表!AC35) ->  | C50: =IF(B50="","",作成に係る計算表!AD35) ->  | D50: =IF(B50="","",作成に係る計算表!AF35) ->  | F50: =IF(B50="","",作成に係る計算表!AG35) ->  | G50: =作成に係る計算表!AH35 ->  | H50: =作成に係る計算表!AI35 ->  | I50: =作成に係る計算表!AJ35 ->  | K50: =作成に係る計算表!AK35 -> 
A51: 33 | B51: =IF(作成に係る計算表!AC36="","",作成に係る計算表!AC36) ->  | C51: =IF(B51="","",作成に係る計算表!AD36) ->  | D51: =IF(B51="","",作成に係る計算表!AF36) ->  | F51: =IF(B51="","",作成に係る計算表!AG36) ->  | G51: =作成に係る計算表!AH36 ->  | H51: =作成に係る計算表!AI36 ->  | I51: =作成に係る計算表!AJ36 ->  | K51: =作成に係る計算表!AK36 -> 
A52: 34 | B52: =IF(作成に係る計算表!AC37="","",作成に係る計算表!AC37) ->  | C52: =IF(B52="","",作成に係る計算表!AD37) ->  | D52: =IF(B52="","",作成に係る計算表!AF37) ->  | F52: =IF(B52="","",作成に係る計算表!AG37) ->  | G52: =作成に係る計算表!AH37 ->  | H52: =作成に係る計算表!AI37 ->  | I52: =作成に係る計算表!AJ37 ->  | K52: =作成に係る計算表!AK37 -> 
A53: 35 | B53: =IF(作成に係る計算表!AC38="","",作成に係る計算表!AC38) ->  | C53: =IF(B53="","",作成に係る計算表!AD38) ->  | D53: =IF(B53="","",作成に係る計算表!AF38) ->  | F53: =IF(B53="","",作成に係る計算表!AG38) ->  | G53: =作成に係る計算表!AH38 ->  | H53: =作成に係る計算表!AI38 ->  | I53: =作成に係る計算表!AJ38 ->  | K53: =作成に係る計算表!AK38 -> 
A54: 36 | B54: =IF(作成に係る計算表!AC39="","",作成に係る計算表!AC39) ->  | C54: =IF(B54="","",作成に係る計算表!AD39) ->  | D54: =IF(B54="","",作成に係る計算表!AF39) ->  | F54: =IF(B54="","",作成に係る計算表!AG39) ->  | G54: =作成に係る計算表!AH39 ->  | H54: =作成に係る計算表!AI39 ->  | I54: =作成に係る計算表!AJ39 ->  | K54: =作成に係る計算表!AK39 -> 
A55: 37 | B55: =IF(作成に係る計算表!AC40="","",作成に係る計算表!AC40) ->  | C55: =IF(B55="","",作成に係る計算表!AD40) ->  | D55: =IF(B55="","",作成に係る計算表!AF40) ->  | F55: =IF(B55="","",作成に係る計算表!AG40) ->  | G55: =作成に係る計算表!AH40 ->  | H55: =作成に係る計算表!AI40 ->  | I55: =作成に係る計算表!AJ40 ->  | K55: =作成に係る計算表!AK40 -> 
A56: 38 | B56: =IF(作成に係る計算表!AC41="","",作成に係る計算表!AC41) ->  | C56: =IF(B56="","",作成に係る計算表!AD41) ->  | D56: =IF(B56="","",作成に係る計算表!AF41) ->  | F56: =IF(B56="","",作成に係る計算表!AG41) ->  | G56: =作成に係る計算表!AH41 ->  | H56: =作成に係る計算表!AI41 ->  | I56: =作成に係る計算表!AJ41 ->  | K56: =作成に係る計算表!AK41 -> 
A57: 39 | B57: =IF(作成に係る計算表!AC42="","",作成に係る計算表!AC42) ->  | C57: =IF(B57="","",作成に係る計算表!AD42) ->  | D57: =IF(B57="","",作成に係る計算表!AF42) ->  | F57: =IF(B57="","",作成に係る計算表!AG42) ->  | G57: =作成に係る計算表!AH42 ->  | H57: =作成に係る計算表!AI42 ->  | I57: =作成に係る計算表!AJ42 ->  | K57: =作成に係る計算表!AK42 -> 
A58: 40 | B58: =IF(作成に係る計算表!AC43="","",作成に係る計算表!AC43) ->  | C58: =IF(B58="","",作成に係る計算表!AD43) ->  | D58: =IF(B58="","",作成に係る計算表!AF43) ->  | F58: =IF(B58="","",作成に係る計算表!AG43) ->  | G58: =作成に係る計算表!AH43 ->  | H58: =作成に係る計算表!AI43 ->  | I58: =作成に係る計算表!AJ43 ->  | K58: =作成に係る計算表!AK43 -> 
A59: 41 | B59: =IF(作成に係る計算表!AC44="","",作成に係る計算表!AC44) ->  | C59: =IF(B59="","",作成に係る計算表!AD44) ->  | D59: =IF(B59="","",作成に係る計算表!AF44) ->  | F59: =IF(B59="","",作成に係る計算表!AG44) ->  | G59: =作成に係る計算表!AH44 ->  | H59: =作成に係る計算表!AI44 ->  | I59: =作成に係る計算表!AJ44 ->  | K59: =作成に係る計算表!AK44 -> 
A60: 42 | B60: =IF(作成に係る計算表!AC45="","",作成に係る計算表!AC45) ->  | C60: =IF(B60="","",作成に係る計算表!AD45) ->  | D60: =IF(B60="","",作成に係る計算表!AF45) ->  | F60: =IF(B60="","",作成に係る計算表!AG45) ->  | G60: =作成に係る計算表!AH45 ->  | H60: =作成に係る計算表!AI45 ->  | I60: =作成に係る計算表!AJ45 ->  | K60: =作成に係る計算表!AK45 -> 
A61: 43 | B61: =IF(作成に係る計算表!AC46="","",作成に係る計算表!AC46) ->  | C61: =IF(B61="","",作成に係る計算表!AD46) ->  | D61: =IF(B61="","",作成に係る計算表!AF46) ->  | F61: =IF(B61="","",作成に係る計算表!AG46) ->  | G61: =作成に係る計算表!AH46 ->  | H61: =作成に係る計算表!AI46 ->  | I61: =作成に係る計算表!AJ46 ->  | K61: =作成に係る計算表!AK46 -> 
A62: 44 | B62: =IF(作成に係る計算表!AC47="","",作成に係る計算表!AC47) ->  | C62: =IF(B62="","",作成に係る計算表!AD47) ->  | D62: =IF(B62="","",作成に係る計算表!AF47) ->  | F62: =IF(B62="","",作成に係る計算表!AG47) ->  | G62: =作成に係る計算表!AH47 ->  | H62: =作成に係る計算表!AI47 ->  | I62: =作成に係る計算表!AJ47 ->  | K62: =作成に係る計算表!AK47 -> 
A63: 45 | B63: =IF(作成に係る計算表!AC48="","",作成に係る計算表!AC48) ->  | C63: =IF(B63="","",作成に係る計算表!AD48) ->  | D63: =IF(B63="","",作成に係る計算表!AF48) ->  | F63: =IF(B63="","",作成に係る計算表!AG48) ->  | G63: =作成に係る計算表!AH48 ->  | H63: =作成に係る計算表!AI48 ->  | I63: =作成に係る計算表!AJ48 ->  | K63: =作成に係る計算表!AK48 -> 
A64: 46 | B64: =IF(作成に係る計算表!AC49="","",作成に係る計算表!AC49) ->  | C64: =IF(B64="","",作成に係る計算表!AD49) ->  | D64: =IF(B64="","",作成に係る計算表!AF49) ->  | F64: =IF(B64="","",作成に係る計算表!AG49) ->  | G64: =作成に係る計算表!AH49 ->  | H64: =作成に係る計算表!AI49 ->  | I64: =作成に係る計算表!AJ49 ->  | K64: =作成に係る計算表!AK49 -> 
A65: 47 | B65: =IF(作成に係る計算表!AC50="","",作成に係る計算表!AC50) ->  | C65: =IF(B65="","",作成に係る計算表!AD50) ->  | D65: =IF(B65="","",作成に係る計算表!AF50) ->  | F65: =IF(B65="","",作成に係る計算表!AG50) ->  | G65: =作成に係る計算表!AH50 ->  | H65: =作成に係る計算表!AI50 ->  | I65: =作成に係る計算表!AJ50 ->  | K65: =作成に係る計算表!AK50 -> 
A66: 48 | B66: =IF(作成に係る計算表!AC51="","",作成に係る計算表!AC51) ->  | C66: =IF(B66="","",作成に係る計算表!AD51) ->  | D66: =IF(B66="","",作成に係る計算表!AF51) ->  | F66: =IF(B66="","",作成に係る計算表!AG51) ->  | G66: =作成に係る計算表!AH51 ->  | H66: =作成に係る計算表!AI51 ->  | I66: =作成に係る計算表!AJ51 ->  | K66: =作成に係る計算表!AK51 -> 
A67: 49 | B67: =IF(作成に係る計算表!AC52="","",作成に係る計算表!AC52) ->  | C67: =IF(B67="","",作成に係る計算表!AD52) ->  | D67: =IF(B67="","",作成に係る計算表!AF52) ->  | F67: =IF(B67="","",作成に係る計算表!AG52) ->  | G67: =作成に係る計算表!AH52 ->  | H67: =作成に係る計算表!AI52 ->  | I67: =作成に係る計算表!AJ52 ->  | K67: =作成に係る計算表!AK52 -> 
A68: 50 | B68: =IF(作成に係る計算表!AC53="","",作成に係る計算表!AC53) ->  | C68: =IF(B68="","",作成に係る計算表!AD53) ->  | D68: =IF(B68="","",作成に係る計算表!AF53) ->  | F68: =IF(B68="","",作成に係る計算表!AG53) ->  | G68: =作成に係る計算表!AH53 ->  | H68: =作成に係る計算表!AI53 ->  | I68: =作成に係る計算表!AJ53 ->  | K68: =作成に係る計算表!AK53 -> 
A69: 51 | B69: =IF(作成に係る計算表!AC54="","",作成に係る計算表!AC54) ->  | C69: =IF(B69="","",作成に係る計算表!AD54) ->  | D69: =IF(B69="","",作成に係る計算表!AF54) ->  | F69: =IF(B69="","",作成に係る計算表!AG54) ->  | G69: =作成に係る計算表!AH54 ->  | H69: =作成に係る計算表!AI54 ->  | I69: =作成に係る計算表!AJ54 ->  | K69: =作成に係る計算表!AK54 -> 
A70: 52 | B70: =IF(作成に係る計算表!AC55="","",作成に係る計算表!AC55) ->  | C70: =IF(B70="","",作成に係る計算表!AD55) ->  | D70: =IF(B70="","",作成に係る計算表!AF55) ->  | F70: =IF(B70="","",作成に係る計算表!AG55) ->  | G70: =作成に係る計算表!AH55 ->  | H70: =作成に係る計算表!AI55 ->  | I70: =作成に係る計算表!AJ55 ->  | K70: =作成に係る計算表!AK55 -> 
A71: 53 | B71: =IF(作成に係る計算表!AC56="","",作成に係る計算表!AC56) ->  | C71: =IF(B71="","",作成に係る計算表!AD56) ->  | D71: =IF(B71="","",作成に係る計算表!AF56) ->  | F71: =IF(B71="","",作成に係る計算表!AG56) ->  | G71: =作成に係る計算表!AH56 ->  | H71: =作成に係る計算表!AI56 ->  | I71: =作成に係る計算表!AJ56 ->  | K71: =作成に係る計算表!AK56 -> 
A72: 54 | B72: =IF(作成に係る計算表!AC57="","",作成に係る計算表!AC57) ->  | C72: =IF(B72="","",作成に係る計算表!AD57) ->  | D72: =IF(B72="","",作成に係る計算表!AF57) ->  | F72: =IF(B72="","",作成に係る計算表!AG57) ->  | G72: =作成に係る計算表!AH57 ->  | H72: =作成に係る計算表!AI57 ->  | I72: =作成に係る計算表!AJ57 ->  | K72: =作成に係る計算表!AK57 -> 
A73: 55 | B73: =IF(作成に係る計算表!AC58="","",作成に係る計算表!AC58) ->  | C73: =IF(B73="","",作成に係る計算表!AD58) ->  | D73: =IF(B73="","",作成に係る計算表!AF58) ->  | F73: =IF(B73="","",作成に係る計算表!AG58) ->  | G73: =作成に係る計算表!AH58 ->  | H73: =作成に係る計算表!AI58 ->  | I73: =作成に係る計算表!AJ58 ->  | K73: =作成に係る計算表!AK58 -> 
A74: 56 | B74: =IF(作成に係る計算表!AC59="","",作成に係る計算表!AC59) ->  | C74: =IF(B74="","",作成に係る計算表!AD59) ->  | D74: =IF(B74="","",作成に係る計算表!AF59) ->  | F74: =IF(B74="","",作成に係る計算表!AG59) ->  | G74: =作成に係る計算表!AH59 ->  | H74: =作成に係る計算表!AI59 ->  | I74: =作成に係る計算表!AJ59 ->  | K74: =作成に係る計算表!AK59 -> 
A75: 57 | B75: =IF(作成に係る計算表!AC60="","",作成に係る計算表!AC60) ->  | C75: =IF(B75="","",作成に係る計算表!AD60) ->  | D75: =IF(B75="","",作成に係る計算表!AF60) ->  | F75: =IF(B75="","",作成に係る計算表!AG60) ->  | G75: =作成に係る計算表!AH60 ->  | H75: =作成に係る計算表!AI60 ->  | I75: =作成に係る計算表!AJ60 ->  | K75: =作成に係る計算表!AK60 -> 
A76: 58 | B76: =IF(作成に係る計算表!AC61="","",作成に係る計算表!AC61) ->  | C76: =IF(B76="","",作成に係る計算表!AD61) ->  | D76: =IF(B76="","",作成に係る計算表!AF61) ->  | F76: =IF(B76="","",作成に係る計算表!AG61) ->  | G76: =作成に係る計算表!AH61 ->  | H76: =作成に係る計算表!AI61 ->  | I76: =作成に係る計算表!AJ61 ->  | K76: =作成に係る計算表!AK61 -> 
A77: 59 | B77: =IF(作成に係る計算表!AC62="","",作成に係る計算表!AC62) ->  | C77: =IF(B77="","",作成に係る計算表!AD62) ->  | D77: =IF(B77="","",作成に係る計算表!AF62) ->  | F77: =IF(B77="","",作成に係る計算表!AG62) ->  | G77: =作成に係る計算表!AH62 ->  | H77: =作成に係る計算表!AI62 ->  | I77: =作成に係る計算表!AJ62 ->  | K77: =作成に係る計算表!AK62 -> 
A78: 60 | B78: =IF(作成に係る計算表!AC63="","",作成に係る計算表!AC63) ->  | C78: =IF(B78="","",作成に係る計算表!AD63) ->  | D78: =IF(B78="","",作成に係る計算表!AF63) ->  | F78: =IF(B78="","",作成に係る計算表!AG63) ->  | G78: =作成に係る計算表!AH63 ->  | H78: =作成に係る計算表!AI63 ->  | I78: =作成に係る計算表!AJ63 ->  | K78: =作成に係る計算表!AK63 -> 
A79: 61 | B79: =IF(作成に係る計算表!AC64="","",作成に係る計算表!AC64) ->  | C79: =IF(B79="","",作成に係る計算表!AD64) ->  | D79: =IF(B79="","",作成に係る計算表!AF64) ->  | F79: =IF(B79="","",作成に係る計算表!AG64) ->  | G79: =作成に係る計算表!AH64 ->  | H79: =作成に係る計算表!AI64 ->  | I79: =作成に係る計算表!AJ64 ->  | K79: =作成に係る計算表!AK64 -> 
A80: 62 | B80: =IF(作成に係る計算表!AC65="","",作成に係る計算表!AC65) ->  | C80: =IF(B80="","",作成に係る計算表!AD65) ->  | D80: =IF(B80="","",作成に係る計算表!AF65) ->  | F80: =IF(B80="","",作成に係る計算表!AG65) ->  | G80: =作成に係る計算表!AH65 ->  | H80: =作成に係る計算表!AI65 ->  | I80: =作成に係る計算表!AJ65 ->  | K80: =作成に係る計算表!AK65 -> 
A81: 63 | B81: =IF(作成に係る計算表!AC66="","",作成に係る計算表!AC66) ->  | C81: =IF(B81="","",作成に係る計算表!AD66) ->  | D81: =IF(B81="","",作成に係る計算表!AF66) ->  | F81: =IF(B81="","",作成に係る計算表!AG66) ->  | G81: =作成に係る計算表!AH66 ->  | H81: =作成に係る計算表!AI66 ->  | I81: =作成に係る計算表!AJ66 ->  | K81: =作成に係る計算表!AK66 -> 
A82: 64 | B82: =IF(作成に係る計算表!AC67="","",作成に係る計算表!AC67) ->  | C82: =IF(B82="","",作成に係る計算表!AD67) ->  | D82: =IF(B82="","",作成に係る計算表!AF67) ->  | F82: =IF(B82="","",作成に係る計算表!AG67) ->  | G82: =作成に係る計算表!AH67 ->  | H82: =作成に係る計算表!AI67 ->  | I82: =作成に係る計算表!AJ67 ->  | K82: =作成に係る計算表!AK67 -> 
A83: 65 | B83: =IF(作成に係る計算表!AC68="","",作成に係る計算表!AC68) ->  | C83: =IF(B83="","",作成に係る計算表!AD68) ->  | D83: =IF(B83="","",作成に係る計算表!AF68) ->  | F83: =IF(B83="","",作成に係る計算表!AG68) ->  | G83: =作成に係る計算表!AH68 ->  | H83: =作成に係る計算表!AI68 ->  | I83: =作成に係る計算表!AJ68 ->  | K83: =作成に係る計算表!AK68 -> 
A84: 66 | B84: =IF(作成に係る計算表!AC69="","",作成に係る計算表!AC69) ->  | C84: =IF(B84="","",作成に係る計算表!AD69) ->  | D84: =IF(B84="","",作成に係る計算表!AF69) ->  | E84: =IF(C84="","",C84+D84) ->  | F84: =IF(B84="","",作成に係る計算表!AG69) ->  | G84: =作成に係る計算表!AH69 ->  | H84: =作成に係る計算表!AI69 ->  | I84: =作成に係る計算表!AJ69 ->  | J84: =IF(G84="","",G84-H84-I84) ->  | K84: =作成に係る計算表!AK69 ->  | L84: =IF(G84="","",J84+K84) ->  | M84: =IF(G84="","",E84-L84+F84) -> 
A85: 67 | B85: =IF(作成に係る計算表!AC70="","",作成に係る計算表!AC70) ->  | C85: =IF(B85="","",作成に係る計算表!AD70) ->  | D85: =IF(B85="","",作成に係る計算表!AF70) ->  | F85: =IF(B85="","",作成に係る計算表!AG70) ->  | G85: =作成に係る計算表!AH70 ->  | H85: =作成に係る計算表!AI70 ->  | I85: =作成に係る計算表!AJ70 ->  | K85: =作成に係る計算表!AK70 -> 
A86: 68 | B86: =IF(作成に係る計算表!AC71="","",作成に係る計算表!AC71) ->  | C86: =IF(B86="","",作成に係る計算表!AD71) ->  | D86: =IF(B86="","",作成に係る計算表!AF71) ->  | F86: =IF(B86="","",作成に係る計算表!AG71) ->  | G86: =作成に係る計算表!AH71 ->  | H86: =作成に係る計算表!AI71 ->  | I86: =作成に係る計算表!AJ71 ->  | K86: =作成に係る計算表!AK71 -> 
A87: 69 | B87: =IF(作成に係る計算表!AC72="","",作成に係る計算表!AC72) ->  | C87: =IF(B87="","",作成に係る計算表!AD72) ->  | D87: =IF(B87="","",作成に係る計算表!AF72) ->  | F87: =IF(B87="","",作成に係る計算表!AG72) ->  | G87: =作成に係る計算表!AH72 ->  | H87: =作成に係る計算表!AI72 ->  | I87: =作成に係る計算表!AJ72 ->  | K87: =作成に係る計算表!AK72 -> 
A88: 70 | B88: =IF(作成に係る計算表!AC73="","",作成に係る計算表!AC73) ->  | C88: =IF(B88="","",作成に係る計算表!AD73) ->  | D88: =IF(B88="","",作成に係る計算表!AF73) ->  | F88: =IF(B88="","",作成に係る計算表!AG73) ->  | G88: =作成に係る計算表!AH73 ->  | H88: =作成に係る計算表!AI73 ->  | I88: =作成に係る計算表!AJ73 ->  | K88: =作成に係る計算表!AK73 -> 
A89: 71 | B89: =IF(作成に係る計算表!AC74="","",作成に係る計算表!AC74) ->  | C89: =IF(B89="","",作成に係る計算表!AD74) ->  | D89: =IF(B89="","",作成に係る計算表!AF74) ->  | F89: =IF(B89="","",作成に係る計算表!AG74) ->  | G89: =作成に係る計算表!AH74 ->  | H89: =作成に係る計算表!AI74 ->  | I89: =作成に係る計算表!AJ74 ->  | K89: =作成に係る計算表!AK74 -> 
A90: 72 | B90: =IF(作成に係る計算表!AC75="","",作成に係る計算表!AC75) ->  | C90: =IF(B90="","",作成に係る計算表!AD75) ->  | D90: =IF(B90="","",作成に係る計算表!AF75) ->  | F90: =IF(B90="","",作成に係る計算表!AG75) ->  | G90: =作成に係る計算表!AH75 ->  | H90: =作成に係る計算表!AI75 ->  | I90: =作成に係る計算表!AJ75 ->  | K90: =作成に係る計算表!AK75 -> 
A91: 73 | B91: =IF(作成に係る計算表!AC76="","",作成に係る計算表!AC76) ->  | C91: =IF(B91="","",作成に係る計算表!AD76) ->  | D91: =IF(B91="","",作成に係る計算表!AF76) ->  | F91: =IF(B91="","",作成に係る計算表!AG76) ->  | G91: =作成に係る計算表!AH76 ->  | H91: =作成に係る計算表!AI76 ->  | I91: =作成に係る計算表!AJ76 ->  | K91: =作成に係る計算表!AK76 -> 
A92: 74 | B92: =IF(作成に係る計算表!AC77="","",作成に係る計算表!AC77) ->  | C92: =IF(B92="","",作成に係る計算表!AD77) ->  | D92: =IF(B92="","",作成に係る計算表!AF77) ->  | F92: =IF(B92="","",作成に係る計算表!AG77) ->  | G92: =作成に係る計算表!AH77 ->  | H92: =作成に係る計算表!AI77 ->  | I92: =作成に係る計算表!AJ77 ->  | K92: =作成に係る計算表!AK77 -> 
A93: 75 | B93: =IF(作成に係る計算表!AC78="","",作成に係る計算表!AC78) ->  | C93: =IF(B93="","",作成に係る計算表!AD78) ->  | D93: =IF(B93="","",作成に係る計算表!AF78) ->  | F93: =IF(B93="","",作成に係る計算表!AG78) ->  | G93: =作成に係る計算表!AH78 ->  | H93: =作成に係る計算表!AI78 ->  | I93: =作成に係る計算表!AJ78 ->  | K93: =作成に係る計算表!AK78 -> 
A94: 76 | B94: =IF(作成に係る計算表!AC79="","",作成に係る計算表!AC79) ->  | C94: =IF(B94="","",作成に係る計算表!AD79) ->  | D94: =IF(B94="","",作成に係る計算表!AF79) ->  | F94: =IF(B94="","",作成に係る計算表!AG79) ->  | G94: =作成に係る計算表!AH79 ->  | H94: =作成に係る計算表!AI79 ->  | I94: =作成に係る計算表!AJ79 ->  | K94: =作成に係る計算表!AK79 -> 
A95: 77 | B95: =IF(作成に係る計算表!AC80="","",作成に係る計算表!AC80) ->  | C95: =IF(B95="","",作成に係る計算表!AD80) ->  | D95: =IF(B95="","",作成に係る計算表!AF80) ->  | F95: =IF(B95="","",作成に係る計算表!AG80) ->  | G95: =作成に係る計算表!AH80 ->  | H95: =作成に係る計算表!AI80 ->  | I95: =作成に係る計算表!AJ80 ->  | K95: =作成に係る計算表!AK80 -> 
A96: 78 | B96: =IF(作成に係る計算表!AC81="","",作成に係る計算表!AC81) ->  | C96: =IF(B96="","",作成に係る計算表!AD81) ->  | D96: =IF(B96="","",作成に係る計算表!AF81) ->  | F96: =IF(B96="","",作成に係る計算表!AG81) ->  | G96: =作成に係る計算表!AH81 ->  | H96: =作成に係る計算表!AI81 ->  | I96: =作成に係る計算表!AJ81 ->  | K96: =作成に係る計算表!AK81 -> 
A97: 79 | B97: =IF(作成に係る計算表!AC82="","",作成に係る計算表!AC82) ->  | C97: =IF(B97="","",作成に係る計算表!AD82) ->  | D97: =IF(B97="","",作成に係る計算表!AF82) ->  | F97: =IF(B97="","",作成に係る計算表!AG82) ->  | G97: =作成に係る計算表!AH82 ->  | H97: =作成に係る計算表!AI82 ->  | I97: =作成に係る計算表!AJ82 ->  | K97: =作成に係る計算表!AK82 -> 
A98: 80 | B98: =IF(作成に係る計算表!AC83="","",作成に係る計算表!AC83) ->  | C98: =IF(B98="","",作成に係る計算表!AD83) ->  | D98: =IF(B98="","",作成に係る計算表!AF83) ->  | F98: =IF(B98="","",作成に係る計算表!AG83) ->  | G98: =作成に係る計算表!AH83 ->  | H98: =作成に係る計算表!AI83 ->  | I98: =作成に係る計算表!AJ83 ->  | K98: =作成に係る計算表!AK83 -> 
A99: 81 | B99: =IF(作成に係る計算表!AC84="","",作成に係る計算表!AC84) ->  | C99: =IF(B99="","",作成に係る計算表!AD84) ->  | D99: =IF(B99="","",作成に係る計算表!AF84) ->  | F99: =IF(B99="","",作成に係る計算表!AG84) ->  | G99: =作成に係る計算表!AH84 ->  | H99: =作成に係る計算表!AI84 ->  | I99: =作成に係る計算表!AJ84 ->  | K99: =作成に係る計算表!AK84 -> 
A100: 82 | B100: =IF(作成に係る計算表!AC85="","",作成に係る計算表!AC85) ->  | C100: =IF(B100="","",作成に係る計算表!AD85) ->  | D100: =IF(B100="","",作成に係る計算表!AF85) ->  | F100: =IF(B100="","",作成に係る計算表!AG85) ->  | G100: =作成に係る計算表!AH85 ->  | H100: =作成に係る計算表!AI85 ->  | I100: =作成に係る計算表!AJ85 ->  | K100: =作成に係る計算表!AK85 -> 
A101: 83 | B101: =IF(作成に係る計算表!AC86="","",作成に係る計算表!AC86) ->  | C101: =IF(B101="","",作成に係る計算表!AD86) ->  | D101: =IF(B101="","",作成に係る計算表!AF86) ->  | F101: =IF(B101="","",作成に係る計算表!AG86) ->  | G101: =作成に係る計算表!AH86 ->  | H101: =作成に係る計算表!AI86 ->  | I101: =作成に係る計算表!AJ86 ->  | K101: =作成に係る計算表!AK86 -> 
A102: 84 | B102: =IF(作成に係る計算表!AC87="","",作成に係る計算表!AC87) ->  | C102: =IF(B102="","",作成に係る計算表!AD87) ->  | D102: =IF(B102="","",作成に係る計算表!AF87) ->  | F102: =IF(B102="","",作成に係る計算表!AG87) ->  | G102: =作成に係る計算表!AH87 ->  | H102: =作成に係る計算表!AI87 ->  | I102: =作成に係る計算表!AJ87 ->  | K102: =作成に係る計算表!AK87 -> 
A103: 85 | B103: =IF(作成に係る計算表!AC88="","",作成に係る計算表!AC88) ->  | C103: =IF(B103="","",作成に係る計算表!AD88) ->  | D103: =IF(B103="","",作成に係る計算表!AF88) ->  | F103: =IF(B103="","",作成に係る計算表!AG88) ->  | G103: =作成に係る計算表!AH88 ->  | H103: =作成に係る計算表!AI88 ->  | I103: =作成に係る計算表!AJ88 ->  | K103: =作成に係る計算表!AK88 -> 

Sheet 個人配布用
B1: STEP⑨： | C1: 印刷開始No（報告書のNoを入力） | F1: → | G1: 1 | H1: ※連番で3名分が出力されます。
B2: =協定参加者別!$A$4 -> ○○ 年分【○○ 年1月1日～○○ 年12月31日】 | G2: 中山間地域等直接支払交付金に係る所得計算表 | L2: =協定参加者別!$K$7&協定参加者別!$M$7 -> ○○集落協定
B3: 氏名 | C3: 収入 | G3: 支出 | M3: 所得金額 | N3: 備考
C4: 交付金 | F4: 役員報酬等 | G4: ⑤ 共同取組活動分 | K4: ⑨ | L4: ⑩
C5: ① | D5: ② | E5: ③ | F5: ④ | G5: 支出額 | H5: ⑥ ⑤のうち | I5: ⑦ ⑤のうち | J5: ⑧ | K5: 減価償却費 | L5: 必要経費 （⑧+⑨）
A6: No | C6: 個人配分分 | D6: 共同取組活動分 | E6: 合計 （①＋②） | F6: 個人が受領した額 | H6: 必要経費に該当しない支出額 | I6: 減価償却資産 の取得金額 | J6: 差引計 （⑤-⑥-⑦） | M6: （③-⑩＋④）
A7: =G1 -> 1 | B7: =IF(VLOOKUP($A7,協定参加者別!$A$19:$N$103,B$24,FALSE)="","",VLOOKUP($A7,協定参加者別!$A$19:$N$103,B$24,FALSE)) ->  | C7: =IF(VLOOKUP($A7,協定参加者別!$A$19:$N$103,C$24,FALSE)="","",VLOOKUP($A7,協定参加者別!$A$19:$N$103,C$24,FALSE)) ->  | D7: =IF(VLOOKUP($A7,協定参加者別!$A$19:$N$103,D$24,FALSE)="","",VLOOKUP($A7,協定参加者別!$A$19:$N$103,D$24,FALSE)) ->  | E7: =IF(VLOOKUP($A7,協定参加者別!$A$19:$N$103,E$24,FALSE)="","",VLOOKUP($A7,協定参加者別!$A$19:$N$103,E$24,FALSE)) ->  | F7: =IF(VLOOKUP($A7,協定参加者別!$A$19:$N$103,F$24,FALSE)="","",VLOOKUP($A7,協定参加者別!$A$19:$N$103,F$24,FALSE)) ->  | G7: =IF(VLOOKUP($A7,協定参加者別!$A$19:$N$103,G$24,FALSE)="","",VLOOKUP($A7,協定参加者別!$A$19:$N$103,G$24,FALSE)) ->  | H7: =IF(VLOOKUP($A7,協定参加者別!$A$19:$N$103,H$24,FALSE)="","",VLOOKUP($A7,協定参加者別!$A$19:$N$103,H$24,FALSE)) ->  | I7: =IF(VLOOKUP($A7,協定参加者別!$A$19:$N$103,I$24,FALSE)="","",VLOOKUP($A7,協定参加者別!$A$19:$N$103,I$24,FALSE)) ->  | J7: =IF(VLOOKUP($A7,協定参加者別!$A$19:$N$103,J$24,FALSE)="","",VLOOKUP($A7,協定参加者別!$A$19:$N$103,J$24,FALSE)) ->  | K7: =IF(VLOOKUP($A7,協定参加者別!$A$19:$N$103,K$24,FALSE)="","",VLOOKUP($A7,協定参加者別!$A$19:$N$103,K$24,FALSE)) ->  | L7: =IF(VLOOKUP($A7,協定参加者別!$A$19:$N$103,L$24,FALSE)="","",VLOOKUP($A7,協定参加者別!$A$19:$N$103,L$24,FALSE)) ->  | M7: =IF(VLOOKUP($A7,協定参加者別!$A$19:$N$103,M$24,FALSE)="","",VLOOKUP($A7,協定参加者別!$A$19:$N$103,M$24,FALSE)) ->  | N7: =IF(VLOOKUP($A7,協定参加者別!$A$19:$N$103,N$24,FALSE)="","",VLOOKUP($A7,協定参加者別!$A$19:$N$103,N$24,FALSE)) -> 
B10: =協定参加者別!$A$4 -> ○○ 年分【○○ 年1月1日～○○ 年12月31日】 | G10: 中山間地域等直接支払交付金に係る所得計算表 | L10: =協定参加者別!$K$7&協定参加者別!$M$7 -> ○○集落協定
B11: 氏名 | C11: 収入 | G11: 支出 | M11: 所得金額 | N11: 備考
C12: 交付金 | F12: 役員報酬等 | G12: ⑤ 共同取組活動分 | K12: ⑨ | L12: ⑩
C13: ① | D13: ② | E13: ③ | F13: ④ | G13: 支出額 | H13: ⑥ ⑤のうち | I13: ⑦ ⑤のうち | J13: ⑧ | K13: 減価償却費 | L13: 必要経費 （⑧+⑨）
C14: 個人配分分 | D14: 共同取組活動分 | E14: 合計 （①＋②） | F14: 個人が受領した額 | H14: 必要経費に該当しない支出額 | I14: 減価償却資産 の取得金額 | J14: 差引計 （⑤-⑥-⑦） | M14: （③-⑩＋④）
A15: =A7+1 -> 2 | B15: =IF(VLOOKUP($A15,協定参加者別!$A$19:$N$103,B$24,FALSE)="","",VLOOKUP($A15,協定参加者別!$A$19:$N$103,B$24,FALSE)) ->  | C15: =IF(VLOOKUP($A15,協定参加者別!$A$19:$N$103,C$24,FALSE)="","",VLOOKUP($A15,協定参加者別!$A$19:$N$103,C$24,FALSE)) ->  | D15: =IF(VLOOKUP($A15,協定参加者別!$A$19:$N$103,D$24,FALSE)="","",VLOOKUP($A15,協定参加者別!$A$19:$N$103,D$24,FALSE)) ->  | E15: =IF(VLOOKUP($A15,協定参加者別!$A$19:$N$103,E$24,FALSE)="","",VLOOKUP($A15,協定参加者別!$A$19:$N$103,E$24,FALSE)) ->  | F15: =IF(VLOOKUP($A15,協定参加者別!$A$19:$N$103,F$24,FALSE)="","",VLOOKUP($A15,協定参加者別!$A$19:$N$103,F$24,FALSE)) ->  | G15: =IF(VLOOKUP($A15,協定参加者別!$A$19:$N$103,G$24,FALSE)="","",VLOOKUP($A15,協定参加者別!$A$19:$N$103,G$24,FALSE)) ->  | H15: =IF(VLOOKUP($A15,協定参加者別!$A$19:$N$103,H$24,FALSE)="","",VLOOKUP($A15,協定参加者別!$A$19:$N$103,H$24,FALSE)) ->  | I15: =IF(VLOOKUP($A15,協定参加者別!$A$19:$N$103,I$24,FALSE)="","",VLOOKUP($A15,協定参加者別!$A$19:$N$103,I$24,FALSE)) ->  | J15: =IF(VLOOKUP($A15,協定参加者別!$A$19:$N$103,J$24,FALSE)="","",VLOOKUP($A15,協定参加者別!$A$19:$N$103,J$24,FALSE)) ->  | K15: =IF(VLOOKUP($A15,協定参加者別!$A$19:$N$103,K$24,FALSE)="","",VLOOKUP($A15,協定参加者別!$A$19:$N$103,K$24,FALSE)) ->  | L15: =IF(VLOOKUP($A15,協定参加者別!$A$19:$N$103,L$24,FALSE)="","",VLOOKUP($A15,協定参加者別!$A$19:$N$103,L$24,FALSE)) ->  | M15: =IF(VLOOKUP($A15,協定参加者別!$A$19:$N$103,M$24,FALSE)="","",VLOOKUP($A15,協定参加者別!$A$19:$N$103,M$24,FALSE)) ->  | N15: =IF(VLOOKUP($A15,協定参加者別!$A$19:$N$103,N$24,FALSE)="","",VLOOKUP($A15,協定参加者別!$A$19:$N$103,N$24,FALSE)) -> 
B18: =協定参加者別!$A$4 -> ○○ 年分【○○ 年1月1日～○○ 年12月31日】 | G18: 中山間地域等直接支払交付金に係る所得計算表 | L18: =協定参加者別!$K$7&協定参加者別!$M$7 -> ○○集落協定
B19: 氏名 | C19: 収入 | G19: 支出 | M19: 所得金額 | N19: 備考
C20: 交付金 | F20: 役員報酬等 | G20: ⑤ 共同取組活動分 | K20: ⑨ | L20: ⑩
C21: ① | D21: ② | E21: ③ | F21: ④ | G21: 支出額 | H21: ⑥ ⑤のうち | I21: ⑦ ⑤のうち | J21: ⑧ | K21: 減価償却費 | L21: 必要経費 （⑧+⑨）
C22: 個人配分分 | D22: 共同取組活動分 | E22: 合計 （①＋②） | F22: 個人が受領した額 | H22: 必要経費に該当しない支出額 | I22: 減価償却資産 の取得金額 | J22: 差引計 （⑤-⑥-⑦） | M22: （③-⑩＋④）
A23: =A15+1 -> 3 | B23: =IF(VLOOKUP($A23,協定参加者別!$A$19:$N$103,B$24,FALSE)="","",VLOOKUP($A23,協定参加者別!$A$19:$N$103,B$24,FALSE)) ->  | C23: =IF(VLOOKUP($A23,協定参加者別!$A$19:$N$103,C$24,FALSE)="","",VLOOKUP($A23,協定参加者別!$A$19:$N$103,C$24,FALSE)) ->  | D23: =IF(VLOOKUP($A23,協定参加者別!$A$19:$N$103,D$24,FALSE)="","",VLOOKUP($A23,協定参加者別!$A$19:$N$103,D$24,FALSE)) ->  | E23: =IF(VLOOKUP($A23,協定参加者別!$A$19:$N$103,E$24,FALSE)="","",VLOOKUP($A23,協定参加者別!$A$19:$N$103,E$24,FALSE)) ->  | F23: =IF(VLOOKUP($A23,協定参加者別!$A$19:$N$103,F$24,FALSE)="","",VLOOKUP($A23,協定参加者別!$A$19:$N$103,F$24,FALSE)) ->  | G23: =IF(VLOOKUP($A23,協定参加者別!$A$19:$N$103,G$24,FALSE)="","",VLOOKUP($A23,協定参加者別!$A$19:$N$103,G$24,FALSE)) ->  | H23: =IF(VLOOKUP($A23,協定参加者別!$A$19:$N$103,H$24,FALSE)="","",VLOOKUP($A23,協定参加者別!$A$19:$N$103,H$24,FALSE)) ->  | I23: =IF(VLOOKUP($A23,協定参加者別!$A$19:$N$103,I$24,FALSE)="","",VLOOKUP($A23,協定参加者別!$A$19:$N$103,I$24,FALSE)) ->  | J23: =IF(VLOOKUP($A23,協定参加者別!$A$19:$N$103,J$24,FALSE)="","",VLOOKUP($A23,協定参加者別!$A$19:$N$103,J$24,FALSE)) ->  | K23: =IF(VLOOKUP($A23,協定参加者別!$A$19:$N$103,K$24,FALSE)="","",VLOOKUP($A23,協定参加者別!$A$19:$N$103,K$24,FALSE)) ->  | L23: =IF(VLOOKUP($A23,協定参加者別!$A$19:$N$103,L$24,FALSE)="","",VLOOKUP($A23,協定参加者別!$A$19:$N$103,L$24,FALSE)) ->  | M23: =IF(VLOOKUP($A23,協定参加者別!$A$19:$N$103,M$24,FALSE)="","",VLOOKUP($A23,協定参加者別!$A$19:$N$103,M$24,FALSE)) ->  | N23: =IF(VLOOKUP($A23,協定参加者別!$A$19:$N$103,N$24,FALSE)="","",VLOOKUP($A23,協定参加者別!$A$19:$N$103,N$24,FALSE)) -> 
A24: 行番号 | B24: 2 | C24: 3 | D24: 4 | E24: 5 | F24: 6 | G24: 7 | H24: 8 | I24: 9 | J24: 10 | K24: 11 | L24: 12 | M24: 13 | N24: 14

Sheet 減価償却計算
A1: 減価償却費の計算 | D1: 平成19年4月1日以後取得（定額法）
A3: 申告年 | C3: 30 | I3: 当該年中の減価償却費（一人当たり） | N3: =ROUNDDOWN(VLOOKUP($C$3,$A$14:$N$52,14,FALSE)/$C$9,0) ->  | O3: 円
A4: 資産名称 | C4: ○○ | I4: 端数 | N4: =VLOOKUP($C$3,$A$14:$N$52,14,FALSE)-N3*C9 ->  | O4: 円
A5: 取得価格 | C5: 2000000
A6: 取得年月日 | C6: 30 | D6: 年 | E6: 5 | F6: 月
A7: 耐用年数 | C7: 7 | D7: 年（ | E7: =C7*12 -> 84 | F7: か月）
A8: 農業の使用割合 | C8: 1
A9: 共有者数 | C9: =作成に係る計算表!AE2 -> 0 | D9: 一人当たり | E9: =IF(C5/C9<100000,"対象外",C5/C9) -> 
A10: 定額法償却率 | C10: =VLOOKUP(C7,償却率!A1:B50,2,FALSE) -> 0.143
A12: 年 | B12: 減価償却の基礎となる金額 （取得価格） | D12: 定額法償却率 | F12: 1年間の減価償却費 | H12: 使用月数 | J12: 減価償却費 | L12: 農業の使用割合 | N12: 必要経費となる減価償却費 | O12: 未償却残高
B13: （円） | F13: （円） | H13: （月） | J13: （円） | L13: （％） | N13: （円） | O13: （円）
A14: =C6 -> 30 | B14: =$C$5 -> 2000000 | C14: × | D14: =$C$10 -> 0.143 | E14: ＝ | F14: =ROUNDDOWN(B14*D14,0) -> 286000 | G14: × | H14: =13-E6 -> 8 | I14: ＝ | J14: =ROUNDDOWN(F14*H14/12,0) -> 190666 | K14: × | L14: =$C$8 -> 1 | M14: ＝ | N14: =J14*L14 -> 190666 | O14: =B14-N14 -> 1809334 | P14: =E7-H14 -> 76
A15: =A14+1 -> 31 | B15: =IF(P14=0,0,$C$5) -> 2000000 | C15: × | D15: 0.143 | E15: ＝ | F15: =ROUNDDOWN(B15*D15,0) -> 286000 | G15: × | H15: =IF(P14>=12,12,P14) -> 12 | I15: ＝ | J15: =ROUNDDOWN(F15*H15/12,0) -> 286000 | K15: × | L15: 1 | M15: ＝ | N15: =IF(O14=0,0,IF(J15*L15>=O14,O14-1,J15*L15)) -> 286000 | O15: =IF(N15=0,0,O14-N15) -> 1523334 | P15: =P14-H15 -> 64
A16: =A15+1 -> 32 | B16: 2000000 | C16: × | D16: 0.143 | E16: ＝ | F16: 286000 | G16: × | H16: =IF(P15>=12,12,P15) -> 12 | I16: ＝ | J16: 286000 | K16: × | L16: 1 | M16: ＝ | N16: =IF(O15=0,0,IF(J16*L16>=O15,O15-1,J16*L16)) -> 286000 | O16: =IF(N16=0,0,O15-N16) -> 1237334 | P16: =P15-H16 -> 52
A17: 33 | B17: 2000000 | C17: × | D17: 0.143 | E17: ＝ | F17: 286000 | G17: × | H17: 12 | I17: ＝ | J17: 286000 | K17: × | L17: 1 | M17: ＝ | N17: 286000 | O17: 951334 | P17: 40
A18: 34 | B18: 2000000 | C18: × | D18: 0.143 | E18: ＝ | F18: 286000 | G18: × | H18: 12 | I18: ＝ | J18: 286000 | K18: × | L18: 1 | M18: ＝ | N18: 286000 | O18: 665334 | P18: 28
A19: 35 | B19: 2000000 | C19: × | D19: 0.143 | E19: ＝ | F19: 286000 | G19: × | H19: 12 | I19: ＝ | J19: 286000 | K19: × | L19: 1 | M19: ＝ | N19: 286000 | O19: 379334 | P19: 16
A20: 36 | B20: 2000000 | C20: × | D20: 0.143 | E20: ＝ | F20: 286000 | G20: × | H20: 12 | I20: ＝ | J20: 286000 | K20: × | L20: 1 | M20: ＝ | N20: 286000 | O20: 93334 | P20: 4
A21: 37 | B21: 2000000 | C21: × | D21: 0.143 | E21: ＝ | F21: 286000 | G21: × | H21: 4 | I21: ＝ | J21: 95333 | K21: × | L21: 1 | M21: ＝ | N21: 93333 | O21: 1 | P21: 0
A22: 38 | B22: 0 | C22: × | D22: 0.143 | E22: ＝ | F22: 0 | G22: × | H22: 0 | I22: ＝ | J22: 0 | K22: × | L22: 1 | M22: ＝ | N22: 0 | O22: 0 | P22: 0
A23: 39 | B23: 0 | C23: × | D23: 0.143 | E23: ＝ | F23: 0 | G23: × | H23: 0 | I23: ＝ | J23: 0 | K23: × | L23: 1 | M23: ＝ | N23: 0 | O23: 0 | P23: 0
A24: 40 | B24: 0 | C24: × | D24: 0.143 | E24: ＝ | F24: 0 | G24: × | H24: 0 | I24: ＝ | J24: 0 | K24: × | L24: 1 | M24: ＝ | N24: 0 | O24: 0 | P24: 0
A25: 41 | B25: 0 | C25: × | D25: 0.143 | E25: ＝ | F25: 0 | G25: × | H25: 0 | I25: ＝ | J25: 0 | K25: × | L25: 1 | M25: ＝ | N25: 0 | O25: 0 | P25: 0
A26: 42 | B26: 0 | C26: × | D26: 0.143 | E26: ＝ | F26: 0 | G26: × | H26: 0 | I26: ＝ | J26: 0 | K26: × | L26: 1 | M26: ＝ | N26: 0 | O26: 0 | P26: 0
A27: 43 | B27: 0 | C27: × | D27: 0.143 | E27: ＝ | F27: 0 | G27: × | H27: 0 | I27: ＝ | J27: 0 | K27: × | L27: 1 | M27: ＝ | N27: 0 | O27: 0 | P27: 0
A28: 44 | B28: 0 | C28: × | D28: 0.143 | E28: ＝ | F28: 0 | G28: × | H28: 0 | I28: ＝ | J28: 0 | K28: × | L28: 1 | M28: ＝ | N28: 0 | O28: 0 | P28: 0
A29: 45 | B29: 0 | C29: × | D29: 0.143 | E29: ＝ | F29: 0 | G29: × | H29: 0 | I29: ＝ | J29: 0 | K29: × | L29: 1 | M29: ＝ | N29: 0 | O29: 0 | P29: 0
A30: 46 | B30: =IF(P29=0,0,$C$5) -> 0 | C30: × | D30: 0.143 | E30: ＝ | F30: 0 | G30: × | H30: 0 | I30: ＝ | J30: 0 | K30: × | L30: 1 | M30: ＝ | N30: 0 | O30: 0 | P30: 0
A31: 47 | B31: 0 | C31: × | D31: 0.143 | E31: ＝ | F31: 0 | G31: × | H31: 0 | I31: ＝ | J31: 0 | K31: × | L31: 1 | M31: ＝ | N31: 0 | O31: 0 | P31: 0
A32: 48 | B32: 0 | C32: × | D32: 0.143 | E32: ＝ | F32: 0 | G32: × | H32: 0 | I32: ＝ | J32: 0 | K32: × | L32: 1 | M32: ＝ | N32: 0 | O32: 0 | P32: 0
A33: 49 | B33: 0 | C33: × | D33: 0.143 | E33: ＝ | F33: 0 | G33: × | H33: 0 | I33: ＝ | J33: 0 | K33: × | L33: 1 | M33: ＝ | N33: 0 | O33: 0 | P33: 0
A34: 50 | B34: 0 | C34: × | D34: 0.143 | E34: ＝ | F34: 0 | G34: × | H34: 0 | I34: ＝ | J34: 0 | K34: × | L34: 1 | M34: ＝ | N34: 0 | O34: 0 | P34: 0
A35: 51 | B35: 0 | C35: × | D35: 0.143 | E35: ＝ | F35: 0 | G35: × | H35: 0 | I35: ＝ | J35: 0 | K35: × | L35: 1 | M35: ＝ | N35: 0 | O35: 0 | P35: 0
A36: 52 | B36: 0 | C36: × | D36: 0.143 | E36: ＝ | F36: 0 | G36: × | H36: 0 | I36: ＝ | J36: 0 | K36: × | L36: 1 | M36: ＝ | N36: 0 | O36: 0 | P36: 0
A37: 53 | B37: 0 | C37: × | D37: 0.143 | E37: ＝ | F37: 0 | G37: × | H37: 0 | I37: ＝ | J37: 0 | K37: × | L37: 1 | M37: ＝ | N37: 0 | O37: 0 | P37: 0
A38: 54 | B38: 0 | C38: × | D38: 0.143 | E38: ＝ | F38: 0 | G38: × | H38: 0 | I38: ＝ | J38: 0 | K38: × | L38: 1 | M38: ＝ | N38: 0 | O38: 0 | P38: 0
A39: 55 | B39: 0 | C39: × | D39: 0.143 | E39: ＝ | F39: 0 | G39: × | H39: 0 | I39: ＝ | J39: 0 | K39: × | L39: 1 | M39: ＝ | N39: 0 | O39: 0 | P39: 0
A40: 56 | B40: 0 | C40: × | D40: 0.143 | E40: ＝ | F40: 0 | G40: × | H40: 0 | I40: ＝ | J40: 0 | K40: × | L40: 1 | M40: ＝ | N40: 0 | O40: 0 | P40: 0
A41: 57 | B41: 0 | C41: × | D41: 0.143 | E41: ＝ | F41: 0 | G41: × | H41: 0 | I41: ＝ | J41: 0 | K41: × | L41: 1 | M41: ＝ | N41: 0 | O41: 0 | P41: 0
A42: 58 | B42: 0 | C42: × | D42: 0.143 | E42: ＝ | F42: 0 | G42: × | H42: 0 | I42: ＝ | J42: 0 | K42: × | L42: 1 | M42: ＝ | N42: 0 | O42: 0 | P42: 0
A43: 59 | B43: 0 | C43: × | D43: 0.143 | E43: ＝ | F43: 0 | G43: × | H43: 0 | I43: ＝ | J43: 0 | K43: × | L43: 1 | M43: ＝ | N43: 0 | O43: 0 | P43: 0
A44: 60 | B44: 0 | C44: × | D44: 0.143 | E44: ＝ | F44: 0 | G44: × | H44: 0 | I44: ＝ | J44: 0 | K44: × | L44: 1 | M44: ＝ | N44: 0 | O44: 0 | P44: 0
A45: 61 | B45: 0 | C45: × | D45: 0.143 | E45: ＝ | F45: 0 | G45: × | H45: 0 | I45: ＝ | J45: 0 | K45: × | L45: 1 | M45: ＝ | N45: 0 | O45: 0 | P45: 0
A46: 62 | B46: 0 | C46: × | D46: 0.143 | E46: ＝ | F46: 0 | G46: × | H46: 0 | I46: ＝ | J46: 0 | K46: × | L46: 1 | M46: ＝ | N46: 0 | O46: 0 | P46: 0
A47: 63 | B47: 0 | C47: × | D47: 0.143 | E47: ＝ | F47: 0 | G47: × | H47: 0 | I47: ＝ | J47: 0 | K47: × | L47: 1 | M47: ＝ | N47: 0 | O47: 0 | P47: 0
A48: 64 | B48: 0 | C48: × | D48: 0.143 | E48: ＝ | F48: 0 | G48: × | H48: 0 | I48: ＝ | J48: 0 | K48: × | L48: 1 | M48: ＝ | N48: 0 | O48: 0 | P48: 0
A49: 65 | B49: 0 | C49: × | D49: 0.143 | E49: ＝ | F49: 0 | G49: × | H49: 0 | I49: ＝ | J49: 0 | K49: × | L49: 1 | M49: ＝ | N49: 0 | O49: 0 | P49: 0
A50: 66 | B50: 0 | C50: × | D50: 0.143 | E50: ＝ | F50: 0 | G50: × | H50: 0 | I50: ＝ | J50: 0 | K50: × | L50: 1 | M50: ＝ | N50: 0 | O50: 0 | P50: 0
A51: 67 | B51: 0 | C51: × | D51: 0.143 | E51: ＝ | F51: 0 | G51: × | H51: 0 | I51: ＝ | J51: 0 | K51: × | L51: 1 | M51: ＝ | N51: 0 | O51: 0 | P51: 0
A52: 68 | B52: 0 | C52: × | D52: 0.143 | E52: ＝ | F52: 0 | G52: × | H52: 0 | I52: ＝ | J52: 0 | K52: × | L52: 1 | M52: ＝ | N52: 0 | O52: 0 | P52: 0
L53: 合計 | N53: =SUM(N14:N52) -> 1999999

Sheet 償却率
A1: 耐用年数 | B1: 償却率
A2: 2 | B2: 0.5
A3: 3 | B3: 0.334
A4: 4 | B4: 0.25
A5: 5 | B5: 0.2
A6: 6 | B6: 0.167
A7: 7 | B7: 0.143
A8: 8 | B8: 0.125
A9: 9 | B9: 0.112
A10: 10 | B10: 0.1
A11: 11 | B11: 0.091
A12: 12 | B12: 0.084
A13: 13 | B13: 0.077
A14: 14 | B14: 0.072
A15: 15 | B15: 0.067
A16: 16 | B16: 0.063
A17: 17 | B17: 0.059
A18: 18 | B18: 0.056
A19: 19 | B19: 0.053
A20: 20 | B20: 0.05
A21: 21 | B21: 0.048
A22: 22 | B22: 0.046
A23: 23 | B23: 0.044
A24: 24 | B24: 0.042
A25: 25 | B25: 0.04
A26: 26 | B26: 0.039
A27: 27 | B27: 0.038
A28: 28 | B28: 0.036
A29: 29 | B29: 0.035
A30: 30 | B30: 0.034
A31: 31 | B31: 0.033
A32: 32 | B32: 0.032
A33: 33 | B33: 0.031
A34: 34 | B34: 0.03
A35: 35 | B35: 0.029
A36: 36 | B36: 0.028
A37: 37 | B37: 0.028
A38: 38 | B38: 0.027
A39: 39 | B39: 0.026
A40: 40 | B40: 0.025
A41: 41 | B41: 0.025
A42: 42 | B42: 0.024
A43: 43 | B43: 0.024
A44: 44 | B44: 0.023
A45: 45 | B45: 0.023
A46: 46 | B46: 0.022
A47: 47 | B47: 0.022
A48: 48 | B48: 0.021
A49: 49 | B49: 0.021
A50: 50 | B50: 0.02

Sheet 作成に係る計算表 (記入例)
A1: 収支状況報告書作成に係る計算表
W2: 集落協定
A3: １ 交付金に係る配分額及び共同取組活動の支出額
A4: （１）配分総額
I5: 総 額（円） | N5: 配分等の基礎
B6: ①個人配分分 | I6: 330000 | N6: 交付金の５０％を面積で按分
B7: ②共同取組活動分 | I7: 660000 | N7: 交付金の５０％を均等割りで按分 （早期交付分330,000含む）
B8: ③合計 | I8: =SUM(I6:M7) -> 990000
A9: （２）共同取組活動支出額
B10: 支出項目 | L10: 支出額（円） | Q10: 備考
B11: ⑤共同取組活動費 | C11: ④役員報酬等 | D11: 役員報酬 | L11: 50000 | Q11: 会長20,000×1名、役員10,000×3名
D12: 日当 | L12: 50000 | Q12: 作業日当 5,000円×10名
D13: その他手当等
D14: ④合計額 | L14: =SUM(L11:P13) -> 100000
C15: 鳥獣害防止対策費 | L15: 150000 | Q15: 防護柵資材代
C16: 水路・農道等の管理費 | L16: 50000 | Q16: 水路補修資材代
C17: 共同利用機械購入費 | L17: 660000 | Q17: 乗用草刈機 １台 共同所有
B23: ⑤共同取組活動費合計額（④を含む） | L23: =L14+SUM(L15:P22) -> 960000 | Q23: 内訳：過年度積立分30万円 29年度分66万円
B24: ⑥ | C24: ⑤のうち、必要経費に該当しない経費の合計額
B25: 残（積立・繰越）額 | Q25: 過年残（積立）額累計

Sheet 協定参加者別 (記入例)
M1: 平成 年 月 日
A3: ="平成"&P3&"年分【平成"&P3&"年1月1日～平成"&P3&"年12月31日】" ->  | O3: 年→ | P3: =協定参加者別!#REF! -> 
A4: 確定申告に係る中山間地域等直接支払交付金収支状況報告書
J6: 集落協定名 | K6: ●●集落協定
J8: 集落協定代表者 | K8: ●● ●● | N8: ㊞
J10: 該当行政区名 | K10: ●●町 | L10: ●●
A12: No. | B12: 氏名 | C12: 収入 | G12: 支出 | M12: 所得金額 | N12: 備考
C13: 交付金 | F13: 役員報酬等 | G13: ⑤ 共同取組活動分 | K13: ⑨ | L13: ⑩
C14: ① | D14: ② | E14: ③ | F14: ④ | G14: 支出額 | H14: ⑥ ⑤のうち | I14: ⑦ ⑤のうち | J14: ⑧ | K14: 減価償却費 | L14: 必要経費 （⑧+⑨）
C15: 個人配分分 | D15: 共同取組活動分 | E15: 合計 （①＋②） | F15: ②のうち個人が受領した額 | H15: 必要経費に該当しない支出額 | I15: 減価償却資産 の取得金額 | J15: 差引計 （⑤-⑥-⑦） | M15: （③-⑩＋④）
A16: 集落合計 | C16: 円 | D16: 円 | E16: 円 | F16: 円 | G16: 円 | H16: 円 | I16: 円 | J16: 円 | K16: 円 | L16: 円 | M16: 円
C17: =SUM(C18:C75) -> 330000 | D17: =SUM(D18:D75) -> 660000 | E17: =C17+D17 -> 990000 | F17: =SUM(F18:F75) -> 100000 | G17: =SUM(G18:G75) -> 960000 | H17: =SUM(H18:H75) -> 0 | I17: =SUM(I18:I75) -> 660000 | J17: =G17-H17-I17 -> 300000 | K17: =SUM(K18:K75) -> 62920 | L17: =J17+K17 -> 362920 | M17: =E17-L17+F17 -> 727080
A18: 1 | B18: ○○ 太郎 | C18: 60000 | D18: 132000 | E18: =IF(C18="","",C18+D18) -> 192000 | F18: 30000 | G18: 192000 | I18: 132000 | J18: =IF(G18="","",G18-H18-I18) -> 60000 | K18: 12584 | L18: =IF(G18="","",J18+K18) -> 72584 | M18: =IF(G18="","",E18-L18+F18) -> 149416
A19: 2 | B19: □□ 二郎 | C19: 70000 | D19: 132000 | E19: 202000 | F19: 20000 | G19: 192000 | I19: 132000 | J19: 60000 | K19: 12584 | L19: 72584 | M19: =IF(G19="","",E19-L19+F19) -> 149416
A20: 3 | B20: △△ 三郎 | C20: 50000 | D20: 132000 | E20: 182000 | F20: 20000 | G20: 192000 | I20: 132000 | J20: 60000 | K20: 12584 | L20: 72584 | M20: 129416
A21: 4 | B21: ●● 四郎 | C21: 50000 | D21: 132000 | E21: 182000 | F21: 20000 | G21: 192000 | I21: 132000 | J21: 60000 | K21: 12584 | L21: 72584 | M21: 129416
A22: 5 | B22: ■■ 五郎 | C22: 100000 | D22: 132000 | E22: 232000 | F22: 10000 | G22: 192000 | I22: 132000 | J22: 60000 | K22: 12584 | L22: 72584 | M22: 169416
A23: 6
A24: 7
A25: 8
A26: 9
A27: 10
A28: 11
A29: 12
A30: 13
A31: 14
A32: 15
A33: 16
A34: 17
A35: 18
A36: 19
A37: 20
A38: 21
A39: 22
A40: 23
A41: 24
A42: 25
A43: 26
A44: 27
A45: 28
A46: 29
A47: 30
A48: 31
A49: 32
A50: 33
A51: 34
A52: 35
A53: 36
A54: 37
A55: 38
A56: 39
A57: 40
A58: 41
A59: 42
A60: 43
A61: 44
A62: 45
A63: 46
A64: 47
A65: 48
A66: 49
A67: 50
A68: 51
A69: 52
A70: 53 | E70: =IF(C70="","",C70+D70) -> 
A71: 54
A72: 55
A73: 56
A74: 57
A75: 58
